[Event "Late-Titled-Tuesday-Blitz-March-19-2024"]
[Site "Chess.com"]
[Date "2024.03.19"]
[Round "5"]
[White "drdaro"]
[Black "ninguno46"]
[Result "0-1"]
[WhiteElo "2369"]
[BlackElo "2540"]
[TimeControl "180+1"]
[EndTime "14:55:06 PDT"]
[Termination "ninguno46 won by resignation"]

1. Nf3 {[%clk 0:02:50.5]} 1... c5 {[%clk 0:02:58.9]} 2. e4 {[%clk 0:02:50.1]}
2... Nc6 {[%clk 0:02:58.2]} 3. d4 {[%clk 0:02:48.7]} 3... cxd4 {[%clk
0:02:58.1]} 4. Nxd4 {[%clk 0:02:49.6]} 4... g6 {[%clk 0:02:58.1]} 5. Nc3 {[%clk
0:02:47.4]} 5... Bg7 {[%clk 0:02:58]} 6. Be3 {[%clk 0:02:48]} 6... Nf6 {[%clk
0:02:57.6]} 7. Bc4 {[%clk 0:02:47.4]} 7... Qa5 {[%clk 0:02:57.6]} 8. O-O {[%clk
0:02:46.2]} 8... O-O {[%clk 0:02:57.5]} 9. Bb3 {[%clk 0:02:40.5]} 9... d6 {[%clk
0:02:57.3]} 10. f3 {[%clk 0:02:40.2]} 10... Bd7 {[%clk 0:02:56.4]} 11. Qd2
{[%clk 0:02:34.1]} 11... Rfc8 {[%clk 0:02:55]} 12. Rfd1 {[%clk 0:02:33.9]} 12...
Be8 {[%clk 0:02:53.4]} 13. Nd5 {[%clk 0:02:26.1]} 13... Qxd2 {[%clk 0:02:51]}
14. Rxd2 {[%clk 0:02:24.2]} 14... Nxd5 {[%clk 0:02:34.5]} 15. Bxd5 {[%clk
0:02:25.1]} 15... Nxd4 {[%clk 0:02:24.3]} 16. Bxb7 {[%clk 0:02:22.2]} 16... Ne6
{[%clk 0:02:20]} 17. Bxc8 {[%clk 0:02:10]} 17... Rxc8 {[%clk 0:02:19.1]} 18.
Bxa7 {[%clk 0:02:10.9]} 18... Bxb2 {[%clk 0:02:18.2]} 19. Rb1 {[%clk 0:02:05.2]}
19... Bc3 {[%clk 0:02:17]} 20. Rd3 {[%clk 0:02:01.1]} 20... Ba5 {[%clk
0:01:54.4]} 21. Ra3 {[%clk 0:01:50.8]} 21... Bc7 {[%clk 0:01:49.9]} 22. Kf1
{[%clk 0:01:36.1]} 22... f6 {[%clk 0:01:47.9]} 23. Rc3 {[%clk 0:01:32.8]} 23...
Ra8 {[%clk 0:01:44]} 24. Rb7 {[%clk 0:01:30.6]} 24... Bd8 {[%clk 0:01:42.8]} 25.
Rc4 {[%clk 0:01:12.2]} 25... Kf7 {[%clk 0:01:41]} 26. a4 {[%clk 0:01:12.2]}
26... Ba5 {[%clk 0:01:27.6]} 27. Be3 {[%clk 0:00:47.8]} 27... Ra6 {[%clk
0:01:23.9]} 28. Ra7 {[%clk 0:00:38.8]} 28... Rxa7 {[%clk 0:01:17.3]} 29. Bxa7
{[%clk 0:00:39.7]} 29... Bd7 {[%clk 0:01:00.1]} 30. g3 {[%clk 0:00:35.3]} 30...
f5 {[%clk 0:00:58.7]} 31. exf5 {[%clk 0:00:33.2]} 31... gxf5 {[%clk 0:00:57.5]}
32. Ke2 {[%clk 0:00:34.1]} 32... d5 {[%clk 0:00:55.9]} 33. Rh4 {[%clk
0:00:30.6]} 33... Kg6 {[%clk 0:00:51.4]} 34. Be3 {[%clk 0:00:27.2]} 34... Bc3
{[%clk 0:00:34.8]} 35. Bd2 {[%clk 0:00:21.3]} 35... Bg7 {[%clk 0:00:27.2]} 36.
a5 {[%clk 0:00:20.6]} 36... Bb5+ {[%clk 0:00:25.9]} 37. Kd1 {[%clk 0:00:17.8]}
37... d4 {[%clk 0:00:26]} 38. f4 {[%clk 0:00:08.8]} 38... h5 {[%clk 0:00:24.8]}
39. Rh3 {[%clk 0:00:05.5]} 39... Bf1 {[%clk 0:00:23.6]} 0-1

[Event "Late-Titled-Tuesday-Blitz-March-19-2024"]
[Site "Chess.com"]
[Date "2024.03.19"]
[Round "5"]
[White "azikom"]
[Black "MaiqMaster"]
[Result "1-0"]
[WhiteElo "2601"]
[BlackElo "2367"]
[TimeControl "180+1"]
[EndTime "14:55:08 PDT"]
[Termination "azikom won by resignation"]

1. c4 {[%clk 0:03:00]} 1... c5 {[%clk 0:02:59.4]} 2. Nc3 {[%clk 0:02:58]} 2...
Nc6 {[%clk 0:02:59.7]} 3. g3 {[%clk 0:02:50.3]} 3... g6 {[%clk 0:02:59.8]} 4.
Bg2 {[%clk 0:02:50.3]} 4... Bg7 {[%clk 0:02:59.7]} 5. h4 {[%clk 0:02:51.2]} 5...
h6 {[%clk 0:02:58.4]} 6. d3 {[%clk 0:02:50.3]} 6... d6 {[%clk 0:02:57.9]} 7. h5
{[%clk 0:02:48.2]} 7... g5 {[%clk 0:02:57.6]} 8. f4 {[%clk 0:02:48.4]} 8... gxf4
{[%clk 0:02:27.8]} 9. Bxf4 {[%clk 0:02:49.3]} 9... e5 {[%clk 0:02:27]} 10. Be3
{[%clk 0:02:43.5]} 10... Nge7 {[%clk 0:02:26.1]} 11. Qd2 {[%clk 0:02:43.8]}
11... Be6 {[%clk 0:02:17.7]} 12. O-O-O {[%clk 0:02:41.7]} 12... Qa5 {[%clk
0:02:15.2]} 13. Kb1 {[%clk 0:02:41.4]} 13... O-O-O {[%clk 0:02:12.9]} 14. Nf3
{[%clk 0:02:36.1]} 14... Nd4 {[%clk 0:02:12.3]} 15. Bf2 {[%clk 0:02:29.3]} 15...
Nec6 {[%clk 0:02:08.4]} 16. e3 {[%clk 0:02:22.5]} 16... Nf5 {[%clk 0:02:08.2]}
17. a3 {[%clk 0:02:17.7]} 17... Kb8 {[%clk 0:02:04.3]} 18. Bh3 {[%clk
0:02:06.5]} 18... Nfe7 {[%clk 0:01:57.7]} 19. Bxe6 {[%clk 0:02:00.4]} 19... fxe6
{[%clk 0:01:58.6]} 20. Ne4 {[%clk 0:02:00.4]} 20... Qxd2 {[%clk 0:01:50.5]} 21.
Nfxd2 {[%clk 0:01:58.4]} 21... b6 {[%clk 0:01:47.6]} 22. g4 {[%clk 0:01:56.6]}
22... d5 {[%clk 0:01:45.2]} 23. Nc3 {[%clk 0:01:57]} 23... Kb7 {[%clk
0:01:37.1]} 24. Bh4 {[%clk 0:01:56.5]} 24... Rdf8 {[%clk 0:01:31.8]} 25. Rdf1
{[%clk 0:01:55.7]} 25... Kc7 {[%clk 0:01:15.7]} 26. Kc2 {[%clk 0:01:50.7]} 26...
Kd7 {[%clk 0:01:15.6]} 27. Ne2 {[%clk 0:01:43.4]} 27... Rxf1 {[%clk 0:01:06.7]}
28. Rxf1 {[%clk 0:01:42.8]} 28... Rf8 {[%clk 0:01:07.2]} 29. Rxf8 {[%clk
0:01:43.3]} 29... Bxf8 {[%clk 0:01:08.1]} 30. e4 {[%clk 0:01:37.3]} 30... Nd4+
{[%clk 0:00:42.3]} 31. Nxd4 {[%clk 0:01:37.1]} 31... exd4 {[%clk 0:00:39.1]} 32.
Bf6 {[%clk 0:01:24.2]} 32... Ng8 {[%clk 0:00:33.9]} 33. Be5 {[%clk 0:01:23.7]}
33... Bd6 {[%clk 0:00:32.4]} 34. Bg7 {[%clk 0:01:19.1]} 34... Bf4 {[%clk
0:00:29.6]} 35. exd5 {[%clk 0:01:16.4]} 35... exd5 {[%clk 0:00:29.8]} 36. cxd5
{[%clk 0:01:08.5]} 36... Kd6 {[%clk 0:00:29.5]} 37. g5 {[%clk 0:01:05.4]} 37...
Kxd5 {[%clk 0:00:15.1]} 38. Ne4 {[%clk 0:01:04]} 38... Be5 {[%clk 0:00:09]} 39.
gxh6 {[%clk 0:01:02.6]} 39... Bxg7 {[%clk 0:00:03.6]} 40. hxg7 {[%clk
0:01:03.5]} 40... Ke6 {[%clk 0:00:03.9]} 41. Kb3 {[%clk 0:00:57.2]} 41... Kf7
{[%clk 0:00:04.3]} 42. Nd6+ {[%clk 0:00:57.3]} 42... Kxg7 {[%clk 0:00:04.6]} 43.
Nc8 {[%clk 0:00:58]} 43... Nf6 {[%clk 0:00:04.7]} 44. Nxa7 {[%clk 0:00:57.8]}
44... Nxh5 {[%clk 0:00:05.2]} 45. Kc4 {[%clk 0:00:58.4]} 45... Nf4 {[%clk
0:00:05.7]} 46. a4 {[%clk 0:00:58.2]} 46... Kf6 {[%clk 0:00:06]} 47. Nc8 {[%clk
0:00:58.3]} 47... Ke6 {[%clk 0:00:04.5]} 48. Nxb6 {[%clk 0:00:57.9]} 48... Kd6
{[%clk 0:00:05.2]} 49. a5 {[%clk 0:00:57.6]} 49... Nd5 {[%clk 0:00:05.6]} 50.
Nxd5 {[%clk 0:00:56.4]} 1-0

[Event "Late-Titled-Tuesday-Blitz-March-19-2024"]
[Site "Chess.com"]
[Date "2024.03.19"]
[Round "5"]
[White "OverallStranger"]
[Black "jaskol95"]
[Result "0-1"]
[WhiteElo "2386"]
[BlackElo "2495"]
[TimeControl "180+1"]
[EndTime "14:55:08 PDT"]
[Termination "jaskol95 won by checkmate"]

1. e4 {[%clk 0:03:00.9]} 1... d5 {[%clk 0:02:59.8]} 2. exd5 {[%clk 0:02:58.3]}
2... Nf6 {[%clk 0:03:00.5]} 3. Bb5+ {[%clk 0:02:57.9]} 3... Nbd7 {[%clk
0:03:00.3]} 4. c4 {[%clk 0:02:57.8]} 4... a6 {[%clk 0:03:01]} 5. Bxd7+ {[%clk
0:02:57.5]} 5... Bxd7 {[%clk 0:02:57.5]} 6. Qe2 {[%clk 0:02:55.4]} 6... c6
{[%clk 0:02:57.2]} 7. dxc6 {[%clk 0:02:53]} 7... Bxc6 {[%clk 0:02:57.6]} 8. Nf3
{[%clk 0:02:52.6]} 8... e6 {[%clk 0:02:56.8]} 9. O-O {[%clk 0:02:39.4]} 9... Bc5
{[%clk 0:02:52.9]} 10. Ne5 {[%clk 0:02:34.2]} 10... Be4 {[%clk 0:02:39.7]} 11.
d3 {[%clk 0:02:27.6]} 11... Bf5 {[%clk 0:02:37.1]} 12. Be3 {[%clk 0:02:26.9]}
12... Bd6 {[%clk 0:02:28.8]} 13. d4 {[%clk 0:02:23.1]} 13... Bxe5 {[%clk
0:02:15.5]} 14. dxe5 {[%clk 0:02:10.5]} 14... Bd3 {[%clk 0:02:16.1]} 15. Qf3
{[%clk 0:02:06.6]} 15... Bxf1 {[%clk 0:02:05.1]} 16. exf6 {[%clk 0:02:05.9]}
16... Bxc4 {[%clk 0:02:00.3]} 17. fxg7 {[%clk 0:02:05.3]} 17... Rg8 {[%clk
0:02:01]} 18. Nc3 {[%clk 0:01:43.3]} 18... Bd5 {[%clk 0:01:30.2]} 19. Qg3 {[%clk
0:01:30.4]} 19... Qf6 {[%clk 0:01:19.2]} 20. Bb6 {[%clk 0:01:14.8]} 20... Rxg7
{[%clk 0:00:50.4]} 21. Nxd5 {[%clk 0:01:14.2]} 21... exd5 {[%clk 0:00:51.1]} 22.
Qe3+ {[%clk 0:01:04.2]} 22... Qe6 {[%clk 0:00:42.2]} 23. Qc3 {[%clk 0:01:01.7]}
23... Kf8 {[%clk 0:00:35.3]} 24. Bd4 {[%clk 0:01:00.3]} 24... Rg6 {[%clk
0:00:29.8]} 25. Re1 {[%clk 0:00:57.9]} 25... Qg4 {[%clk 0:00:21.9]} 26. g3
{[%clk 0:00:57.2]} 26... h5 {[%clk 0:00:19.5]} 27. Qc5+ {[%clk 0:00:44]} 27...
Kg8 {[%clk 0:00:19.4]} 28. Qxd5 {[%clk 0:00:44.6]} 28... Rc8 {[%clk 0:00:13.5]}
29. Qe5 {[%clk 0:00:43.7]} 29... Kh7 {[%clk 0:00:10]} 30. f3 {[%clk 0:00:38.8]}
30... Qg5 {[%clk 0:00:05.5]} 31. Qe4 {[%clk 0:00:29.8]} 31... Rc1 {[%clk
0:00:05.6]} 32. f4 {[%clk 0:00:27]} 32... Rxe1+ {[%clk 0:00:05.4]} 33. Qxe1
{[%clk 0:00:27.8]} 33... Qd5 {[%clk 0:00:05.5]} 34. Be5 {[%clk 0:00:25.1]} 34...
Qxa2 {[%clk 0:00:05.1]} 35. Qb4 {[%clk 0:00:23]} 35... h4 {[%clk 0:00:04.7]} 36.
Qf8 {[%clk 0:00:23]} 36... Rg8 {[%clk 0:00:03.4]} 37. Qe7 {[%clk 0:00:22]} 37...
Qb1+ {[%clk 0:00:03.4]} 38. Kg2 {[%clk 0:00:21.9]} 38... Qe4+ {[%clk 0:00:03.5]}
39. Kh3 {[%clk 0:00:21.8]} 39... Qf5+ {[%clk 0:00:04]} 40. Kxh4 {[%clk
0:00:21.5]} 40... Qg4# {[%clk 0:00:03.7]} 0-1

[Event "Late-Titled-Tuesday-Blitz-March-19-2024"]
[Site "Chess.com"]
[Date "2024.03.19"]
[Round "5"]
[White "Szparu"]
[Black "Young_Catalan_Player09"]
[Result "1-0"]
[WhiteElo "2801"]
[BlackElo "2601"]
[TimeControl "180+1"]
[EndTime "14:55:10 PDT"]
[Termination "Szparu won by resignation"]

1. e4 {[%clk 0:03:00.9]} 1... Nf6 {[%clk 0:02:58.3]} 2. e5 {[%clk 0:03:01.1]}
2... Nd5 {[%clk 0:02:58.8]} 3. d4 {[%clk 0:03:01.2]} 3... d6 {[%clk 0:02:59.4]}
4. Nf3 {[%clk 0:03:00.7]} 4... dxe5 {[%clk 0:02:58.6]} 5. Nxe5 {[%clk
0:03:01.6]} 5... g6 {[%clk 0:02:59.1]} 6. Be2 {[%clk 0:02:59.8]} 6... Bg7 {[%clk
0:02:58.2]} 7. O-O {[%clk 0:03:00.1]} 7... O-O {[%clk 0:02:58.2]} 8. Nf3 {[%clk
0:02:53.9]} 8... Nc6 {[%clk 0:02:52.6]} 9. c4 {[%clk 0:02:49.5]} 9... Nb6 {[%clk
0:02:52.5]} 10. d5 {[%clk 0:02:46.7]} 10... Na5 {[%clk 0:02:47.4]} 11. Nbd2
{[%clk 0:02:33.8]} 11... c6 {[%clk 0:02:46.2]} 12. dxc6 {[%clk 0:02:23.8]} 12...
Nxc6 {[%clk 0:02:47.1]} 13. Nb3 {[%clk 0:02:15.9]} 13... Bf5 {[%clk 0:02:44.2]}
14. Be3 {[%clk 0:02:13.6]} 14... Bxb2 {[%clk 0:02:33.5]} 15. Qe1 {[%clk
0:01:58.2]} 15... Qc7 {[%clk 0:02:08.6]} 16. Rd1 {[%clk 0:01:57.4]} 16... Rad8
{[%clk 0:02:06.1]} 17. c5 {[%clk 0:01:55.1]} 17... Nd5 {[%clk 0:02:01.8]} 18.
Bh6 {[%clk 0:01:54.3]} 18... Bg7 {[%clk 0:02:01.3]} 19. Bxg7 {[%clk 0:01:54]}
19... Kxg7 {[%clk 0:02:02.2]} 20. Bc4 {[%clk 0:01:54.4]} 20... Nf4 {[%clk
0:01:52.8]} 21. Qc3+ {[%clk 0:01:54.2]} 21... e5 {[%clk 0:01:52.9]} 22. Rfe1
{[%clk 0:01:46.3]} 22... Rxd1 {[%clk 0:01:46.1]} 23. Rxd1 {[%clk 0:01:46]} 23...
Rd8 {[%clk 0:01:45]} 24. Re1 {[%clk 0:01:41.2]} 24... f6 {[%clk 0:01:42.3]} 25.
g3 {[%clk 0:01:37.1]} 25... Nd3 {[%clk 0:01:39.9]} 26. Re3 {[%clk 0:01:35.6]}
26... e4 {[%clk 0:01:31.1]} 27. Nfd2 {[%clk 0:01:17.9]} 27... Qe5 {[%clk
0:01:16.8]} 28. Qc2 {[%clk 0:01:09.8]} 28... Ncb4 {[%clk 0:01:12.7]} 29. Qb1
{[%clk 0:01:07.3]} 29... Nxc5 {[%clk 0:00:57.5]} 30. Bf1 {[%clk 0:00:54.7]}
30... Nbd3 {[%clk 0:00:48.5]} 31. Nc4 {[%clk 0:00:50.6]} 31... Qc3 {[%clk
0:00:46.3]} 32. Nxc5 {[%clk 0:00:47.9]} 32... Qxc4 {[%clk 0:00:46.7]} 33. Qxb7+
{[%clk 0:00:45.4]} 33... Kh6 {[%clk 0:00:43.3]} 34. Nxe4 {[%clk 0:00:38.8]}
34... Qc2 {[%clk 0:00:31]} 35. Rxd3 {[%clk 0:00:35]} 35... Rxd3 {[%clk
0:00:31.9]} 36. Nxf6 {[%clk 0:00:31.6]} 36... g5 {[%clk 0:00:22.6]} 37. Qa6
{[%clk 0:00:22.4]} 37... Rd1 {[%clk 0:00:18.6]} 38. Ng4+ {[%clk 0:00:21.5]}
38... Kh5 {[%clk 0:00:18.7]} 39. Ne3 {[%clk 0:00:21.8]} 39... Rxf1+ {[%clk
0:00:16.8]} 40. Qxf1 {[%clk 0:00:20.7]} 40... Qb1 {[%clk 0:00:16.5]} 41. g4+
{[%clk 0:00:18.2]} 1-0

[Event "Late-Titled-Tuesday-Blitz-March-19-2024"]
[Site "Chess.com"]
[Date "2024.03.19"]
[Round "5"]
[White "FabianoCaruana"]
[Black "ContrVersia"]
[Result "1-0"]
[WhiteElo "3084"]
[BlackElo "2922"]
[TimeControl "180+1"]
[EndTime "14:55:12 PDT"]
[Termination "FabianoCaruana won on time"]

1. d4 {[%clk 0:03:00.9]} 1... Nf6 {[%clk 0:02:59.4]} 2. c4 {[%clk 0:03:01]} 2...
e6 {[%clk 0:02:59.6]} 3. Nc3 {[%clk 0:03:01.4]} 3... Bb4 {[%clk 0:02:59.5]} 4.
e3 {[%clk 0:03:01.8]} 4... b6 {[%clk 0:02:59.3]} 5. Ne2 {[%clk 0:03:01.5]} 5...
Ba6 {[%clk 0:02:59.3]} 6. Ng3 {[%clk 0:03:01.7]} 6... Bxc3+ {[%clk 0:02:56.7]}
7. bxc3 {[%clk 0:03:01.6]} 7... d5 {[%clk 0:02:55.6]} 8. cxd5 {[%clk 0:02:59.5]}
8... Bxf1 {[%clk 0:02:53.8]} 9. Rxf1 {[%clk 0:03:00.4]} 9... Qxd5 {[%clk
0:02:51.5]} 10. f3 {[%clk 0:02:57.9]} 10... Nc6 {[%clk 0:02:50.3]} 11. Qe2
{[%clk 0:02:54.1]} 11... O-O-O {[%clk 0:02:43.9]} 12. e4 {[%clk 0:02:50.1]}
12... Qa5 {[%clk 0:02:40.4]} 13. Bd2 {[%clk 0:02:50.2]} 13... Qa4 {[%clk
0:02:36.5]} 14. Kf2 {[%clk 0:02:48.1]} 14... h5 {[%clk 0:02:27.7]} 15. h4 {[%clk
0:02:43.2]} 15... Na5 {[%clk 0:02:16.4]} 16. Rfb1 {[%clk 0:02:41.8]} 16... Ne8
{[%clk 0:01:56.7]} 17. Rb4 {[%clk 0:02:23.3]} 17... Qc6 {[%clk 0:01:53.3]} 18.
e5 {[%clk 0:02:20]} 18... f6 {[%clk 0:01:43.3]} 19. Rc1 {[%clk 0:02:05.8]} 19...
fxe5 {[%clk 0:01:40.9]} 20. Qxe5 {[%clk 0:02:02]} 20... Nf6 {[%clk 0:01:32.1]}
21. c4 {[%clk 0:01:52.7]} 21... Nd7 {[%clk 0:01:23]} 22. Qe2 {[%clk 0:01:46.7]}
22... e5 {[%clk 0:01:20.7]} 23. c5 {[%clk 0:01:41.5]} 23... bxc5 {[%clk
0:00:55]} 24. dxc5 {[%clk 0:01:40.6]} 24... Nf6 {[%clk 0:00:42]} 25. Rcb1 {[%clk
0:01:23.6]} 25... Qxc5+ {[%clk 0:00:41.9]} 26. Be3 {[%clk 0:01:23]} 26... Qc6
{[%clk 0:00:22.5]} 27. Rb8+ {[%clk 0:01:16.1]} 27... Kd7 {[%clk 0:00:22.6]} 28.
Rd1+ {[%clk 0:01:15.1]} 28... Nd5 {[%clk 0:00:17.8]} 29. Rb5 {[%clk 0:01:10.7]}
29... Ke6 {[%clk 0:00:12.1]} 30. Rxa5 {[%clk 0:00:44.9]} 30... Nxe3 {[%clk
0:00:10.2]} 31. Rxd8 {[%clk 0:00:34.1]} 31... Ng4+ {[%clk 0:00:04.4]} 32. fxg4
{[%clk 0:00:33.7]} 32... Qb6+ {[%clk 0:00:03.6]} 33. Kf1 {[%clk 0:00:27]} 33...
Rxd8 {[%clk 0:00:02.4]} 34. Rxe5+ {[%clk 0:00:26.4]} 34... Kd7 {[%clk
0:00:02.2]} 35. Rd5+ {[%clk 0:00:23.2]} 35... Kc8 {[%clk 0:00:02.6]} 36. Rxd8+
{[%clk 0:00:23.1]} 36... Kxd8 {[%clk 0:00:03.5]} 37. Nxh5 {[%clk 0:00:22.5]}
37... g6 {[%clk 0:00:03.5]} 38. Nf4 {[%clk 0:00:21.1]} 38... Qf6 {[%clk
0:00:02.9]} 39. g3 {[%clk 0:00:20.4]} 39... a6 {[%clk 0:00:01.8]} 40. g5 {[%clk
0:00:20.5]} 40... Qf5 {[%clk 0:00:01.8]} 41. Kg2 {[%clk 0:00:20.4]} 1-0

[Event "Late-Titled-Tuesday-Blitz-March-19-2024"]
[Site "Chess.com"]
[Date "2024.03.19"]
[Round "5"]
[White "WilsonPalencia21"]
[Black "bubeliang"]
[Result "1-0"]
[WhiteElo "2619"]
[BlackElo "2788"]
[TimeControl "180+1"]
[EndTime "14:55:12 PDT"]
[Termination "WilsonPalencia21 won by checkmate"]

1. d4 {[%clk 0:03:00.9]} 1... d5 {[%clk 0:02:59.6]} 2. c4 {[%clk 0:02:58.3]}
2... e6 {[%clk 0:02:59.7]} 3. Nf3 {[%clk 0:02:56.6]} 3... Nf6 {[%clk 0:02:59.4]}
4. Nc3 {[%clk 0:02:57.2]} 4... dxc4 {[%clk 0:02:59]} 5. e3 {[%clk 0:02:56.5]}
5... a6 {[%clk 0:02:56.3]} 6. Bxc4 {[%clk 0:02:56.7]} 6... b5 {[%clk 0:02:56.3]}
7. Be2 {[%clk 0:02:57.3]} 7... Bb7 {[%clk 0:02:56.2]} 8. O-O {[%clk 0:02:56.2]}
8... Nbd7 {[%clk 0:02:56.6]} 9. b3 {[%clk 0:02:55.7]} 9... Be7 {[%clk
0:02:54.6]} 10. Bb2 {[%clk 0:02:55.5]} 10... O-O {[%clk 0:02:55.2]} 11. Rc1
{[%clk 0:02:50]} 11... Rc8 {[%clk 0:02:54.1]} 12. Rc2 {[%clk 0:02:29.3]} 12...
c5 {[%clk 0:02:52.1]} 13. dxc5 {[%clk 0:02:25]} 13... Nxc5 {[%clk 0:02:51.8]}
14. Rd2 {[%clk 0:02:24.9]} 14... Qb6 {[%clk 0:02:49]} 15. Ne5 {[%clk 0:01:59]}
15... Qc7 {[%clk 0:02:41.1]} 16. f4 {[%clk 0:01:44.7]} 16... Nce4 {[%clk
0:02:25.7]} 17. Nxe4 {[%clk 0:01:44]} 17... Nxe4 {[%clk 0:02:26.6]} 18. Rd7
{[%clk 0:01:39.1]} 18... Qc5 {[%clk 0:02:25.5]} 19. Bd4 {[%clk 0:01:33.5]} 19...
Qc7 {[%clk 0:01:56.6]} 20. Rxc7 {[%clk 0:01:30.3]} 20... Rxc7 {[%clk 0:01:57.5]}
21. Bf3 {[%clk 0:01:24]} 21... f5 {[%clk 0:01:57.5]} 22. Qe1 {[%clk 0:01:14.5]}
22... Rc2 {[%clk 0:01:49.7]} 23. Qa5 {[%clk 0:01:05.5]} 23... Rfc8 {[%clk
0:01:17.7]} 24. Qb6 {[%clk 0:01:04.6]} 24... Bd5 {[%clk 0:01:17.9]} 25. Qxa6
{[%clk 0:00:41.8]} 25... Rc1 {[%clk 0:01:00.7]} 26. Bxe4 {[%clk 0:00:20.6]}
26... fxe4 {[%clk 0:00:54]} 27. Rxc1 {[%clk 0:00:20.3]} 27... Rxc1+ {[%clk
0:00:53]} 28. Kf2 {[%clk 0:00:20.7]} 28... h6 {[%clk 0:00:44.8]} 29. g3 {[%clk
0:00:19.7]} 29... Bb4 {[%clk 0:00:38.2]} 30. h4 {[%clk 0:00:17.2]} 30... Rc2+
{[%clk 0:00:24.8]} 31. Kg1 {[%clk 0:00:16.7]} 31... Be1 {[%clk 0:00:25.4]} 32.
Qxb5 {[%clk 0:00:15.8]} 32... Bf2+ {[%clk 0:00:23.1]} 33. Kf1 {[%clk 0:00:15.1]}
33... Kh7 {[%clk 0:00:20]} 34. Qe8 {[%clk 0:00:14.6]} 34... Rxa2 {[%clk
0:00:15.4]} 35. Qg6+ {[%clk 0:00:14.3]} 35... Kg8 {[%clk 0:00:15.6]} 36. Ng4
{[%clk 0:00:13.4]} 36... Kf8 {[%clk 0:00:11.2]} 37. Qxg7+ {[%clk 0:00:12.9]}
37... Ke8 {[%clk 0:00:11.6]} 38. Nf6+ {[%clk 0:00:13]} 38... Kd8 {[%clk
0:00:12.2]} 39. Qd7# {[%clk 0:00:13.6]} 1-0

[Event "Late-Titled-Tuesday-Blitz-March-19-2024"]
[Site "Chess.com"]
[Date "2024.03.19"]
[Round "5"]
[White "TheRigos"]
[Black "AlexPapasimakopoulos"]
[Result "0-1"]
[WhiteElo "2565"]
[BlackElo "2756"]
[TimeControl "180+1"]
[EndTime "14:55:13 PDT"]
[Termination "AlexPapasimakopoulos won by resignation"]

1. d4 {[%clk 0:03:00.9]} 1... e6 {[%clk 0:02:45.1]} 2. c4 {[%clk 0:03:00.5]}
2... d5 {[%clk 0:02:43.4]} 3. Nc3 {[%clk 0:03:00.5]} 3... a6 {[%clk 0:02:43.3]}
4. cxd5 {[%clk 0:03:00.3]} 4... exd5 {[%clk 0:02:44.2]} 5. Nf3 {[%clk
0:02:56.3]} 5... c6 {[%clk 0:02:44.5]} 6. Bf4 {[%clk 0:02:45.7]} 6... Bd6 {[%clk
0:02:44.4]} 7. Bg3 {[%clk 0:02:28.2]} 7... Ne7 {[%clk 0:02:43.1]} 8. e3 {[%clk
0:02:23.8]} 8... Bf5 {[%clk 0:02:42.7]} 9. Qb3 {[%clk 0:02:17.2]} 9... Ra7
{[%clk 0:02:29.7]} 10. Bxd6 {[%clk 0:02:05.9]} 10... Qxd6 {[%clk 0:02:30.6]} 11.
Qb6 {[%clk 0:02:06.5]} 11... Nc8 {[%clk 0:02:31.3]} 12. Qb3 {[%clk 0:02:01.6]}
12... Nd7 {[%clk 0:02:30.7]} 13. Nh4 {[%clk 0:01:34.9]} 13... Bg6 {[%clk
0:02:24.6]} 14. Be2 {[%clk 0:01:28]} 14... a5 {[%clk 0:02:23.2]} 15. O-O {[%clk
0:01:19.4]} 15... Qb4 {[%clk 0:02:22]} 16. Nxg6 {[%clk 0:00:56.5]} 16... hxg6
{[%clk 0:02:21.5]} 17. e4 {[%clk 0:00:42.4]} 17... dxe4 {[%clk 0:02:12]} 18.
Nxe4 {[%clk 0:00:40.9]} 18... Qxd4 {[%clk 0:02:00.8]} 19. Bf3 {[%clk 0:00:32.8]}
19... Qe5 {[%clk 0:01:59.1]} 20. g3 {[%clk 0:00:24]} 20... O-O {[%clk
0:01:58.2]} 21. Rfe1 {[%clk 0:00:24]} 21... Nc5 {[%clk 0:01:55.1]} 22. Qc2
{[%clk 0:00:20.4]} 22... Nxe4 {[%clk 0:01:52]} 23. Rxe4 {[%clk 0:00:21.3]} 23...
Qb5 {[%clk 0:01:42.7]} 24. Rae1 {[%clk 0:00:21]} 24... Nd6 {[%clk 0:01:40.7]}
25. Re7 {[%clk 0:00:21.2]} 25... Raa8 {[%clk 0:01:31.1]} 26. Rd7 {[%clk
0:00:21.5]} 26... Rad8 {[%clk 0:01:30.5]} 27. Rxd8 {[%clk 0:00:13.9]} 27... Rxd8
{[%clk 0:01:29.9]} 28. Qd2 {[%clk 0:00:08.5]} 28... Qb4 {[%clk 0:01:25.7]} 29.
Qe3 {[%clk 0:00:08.2]} 29... Nf5 {[%clk 0:01:22.8]} 30. Qe5 {[%clk 0:00:08.6]}
30... Qd4 {[%clk 0:01:15.9]} 31. Qxd4 {[%clk 0:00:08]} 31... Nxd4 {[%clk
0:01:15.4]} 32. Bg4 {[%clk 0:00:06.4]} 32... f5 {[%clk 0:01:13.8]} 33. Bd1
{[%clk 0:00:06.1]} 33... Kf7 {[%clk 0:01:14.1]} 34. h4 {[%clk 0:00:03.8]} 34...
b5 {[%clk 0:01:11]} 35. Kg2 {[%clk 0:00:04.4]} 35... a4 {[%clk 0:01:09.6]} 36.
h5 {[%clk 0:00:04.3]} 36... gxh5 {[%clk 0:01:09]} 37. Bxh5+ {[%clk 0:00:04]}
37... g6 {[%clk 0:01:09.7]} 38. Bd1 {[%clk 0:00:04.9]} 38... c5 {[%clk
0:01:09.3]} 39. Re5 {[%clk 0:00:04.6]} 39... Ne6 {[%clk 0:00:58]} 40. Bf3 {[%clk
0:00:04.1]} 40... Kf6 {[%clk 0:00:58.1]} 41. Re1 {[%clk 0:00:04]} 41... Rd2
{[%clk 0:00:57.8]} 42. a3 {[%clk 0:00:01.8]} 42... Rxb2 {[%clk 0:00:57.3]} 43.
Bd5 {[%clk 0:00:02.2]} 43... Ng5 {[%clk 0:00:53.3]} 44. Re8 {[%clk 0:00:02.3]}
44... Ne4 {[%clk 0:00:53.1]} 45. Bxe4 {[%clk 0:00:02.5]} 45... fxe4 {[%clk
0:00:53.6]} 46. Rxe4 {[%clk 0:00:02.6]} 46... b4 {[%clk 0:00:54.1]} 47. Rc4
{[%clk 0:00:01.5]} 47... Rb3 {[%clk 0:00:51.4]} 48. Rxc5 {[%clk 0:00:01.2]}
48... Rxa3 {[%clk 0:00:51.6]} 49. Rb5 {[%clk 0:00:01.4]} 49... b3 {[%clk
0:00:51.6]} 50. f4 {[%clk 0:00:02.3]} 50... Ra2+ {[%clk 0:00:52.1]} 51. Kf3
{[%clk 0:00:03]} 51... b2 {[%clk 0:00:52.6]} 52. Ke3 {[%clk 0:00:03.1]} 52... a3
{[%clk 0:00:53]} 53. Kd2 {[%clk 0:00:04]} 53... Ra1 {[%clk 0:00:53.6]} 54. Kc2
{[%clk 0:00:04.4]} 54... Rc1+ {[%clk 0:00:54]} 0-1